[Event "*** Titled Tuesday Blitz"]
[Site "Chess.com"]
[Date "2020.10.20"]
[Round "3"]
[White "GMBenjaminBok"]
[Black "valeriocarnicelli"]
[Result "1-0"]
[WhiteElo "2937"]
[BlackElo "2600"]
[TimeControl "180+1"]
[EndTime "10:28:56 PDT"]
[Termination "GMBenjaminBok won by resignation"]

1. d4 {[%clk 0:03:00.9]} 1... d5 {[%clk 0:02:59.8]} 2. c4 {[%clk 0:03:00.6]}
2... c6 {[%clk 0:03:00.3]} 3. Nf3 {[%clk 0:03:00.4]} 3... Nf6 {[%clk 0:03:00.6]}
4. Nc3 {[%clk 0:03:01.1]} 4... e6 {[%clk 0:03:01.1]} 5. e3 {[%clk 0:03:01]} 5...
Nbd7 {[%clk 0:03:01]} 6. Qc2 {[%clk 0:03:01.7]} 6... Bd6 {[%clk 0:03:01]} 7. b3
{[%clk 0:03:02.4]} 7... O-O {[%clk 0:03:00.8]} 8. Be2 {[%clk 0:03:03.2]} 8... b6
{[%clk 0:03:00.3]} 9. O-O {[%clk 0:03:03.9]} 9... Bb7 {[%clk 0:03:00.6]} 10. Bb2
{[%clk 0:03:04.6]} 10... Rc8 {[%clk 0:03:00.8]} 11. Rad1 {[%clk 0:03:04.4]}
11... c5 {[%clk 0:03:00.9]} 12. dxc5 {[%clk 0:03:01.6]} 12... bxc5 {[%clk
0:02:53.5]} 13. cxd5 {[%clk 0:02:29.1]} 13... exd5 {[%clk 0:02:54.4]} 14. Qf5
{[%clk 0:02:29.3]} 14... Qe7 {[%clk 0:02:47.3]} 15. Rfe1 {[%clk 0:02:27.7]}
15... Qe6 {[%clk 0:02:45.4]} 16. Qg5 {[%clk 0:02:16]} 16... h6 {[%clk
0:02:44.5]} 17. Qh4 {[%clk 0:02:11.7]} 17... Ne5 {[%clk 0:02:39.7]} 18. Nb5
{[%clk 0:01:59.8]} 18... Ng6 {[%clk 0:02:33.4]} 19. Qa4 {[%clk 0:01:55.1]} 19...
Bc6 {[%clk 0:02:16.2]} 20. Qa6 {[%clk 0:01:48.2]} 20... Bxb5 {[%clk 0:01:42.9]}
21. Qxb5 {[%clk 0:01:45.8]} 21... Ne4 {[%clk 0:01:39.3]} 22. Qd3 {[%clk
0:01:38.3]} 22... Rfd8 {[%clk 0:01:38.6]} 23. g3 {[%clk 0:01:29.5]} 23... Ne7
{[%clk 0:01:03]} 24. Bf1 {[%clk 0:01:22.8]} 24... c4 {[%clk 0:00:54.5]} 25. Qd4
{[%clk 0:01:02.1]} 25... c3 {[%clk 0:00:54]} 26. Ba1 {[%clk 0:01:00.8]} 26...
Bc5 {[%clk 0:00:37]} 27. Qa4 {[%clk 0:00:53.6]} 27... Nf5 {[%clk 0:00:36.7]} 28.
Nd4 {[%clk 0:00:21]} 28... Nxd4 {[%clk 0:00:19.4]} 29. exd4 {[%clk 0:00:21.2]}
29... Qf6 {[%clk 0:00:19.2]} 30. dxc5 {[%clk 0:00:13.9]} 30... Qxf2+ {[%clk
0:00:18.9]} 31. Kh1 {[%clk 0:00:14.4]} 31... Rxc5 {[%clk 0:00:06.4]} 32. Qd4
{[%clk 0:00:12.3]} 32... Qf3+ {[%clk 0:00:04.8]} 33. Bg2 {[%clk 0:00:11.9]}
33... Nf2+ {[%clk 0:00:04.7]} 34. Kg1 {[%clk 0:00:12.2]} 34... Qxd1 {[%clk
0:00:03.7]} 35. Rxd1 {[%clk 0:00:11.6]} 35... Nxd1 {[%clk 0:00:04.4]} 36. Qxc5
{[%clk 0:00:09.8]} 1-0

[Event "*** Titled Tuesday Blitz"]
[Site "Chess.com"]
[Date "2020.10.20"]
[Round "3"]
[White "chesstrainer2042"]
[Black "poppy73"]
[Result "1-0"]
[WhiteElo "2467"]
[BlackElo "2229"]
[TimeControl "180+1"]
[EndTime "10:28:56 PDT"]
[Termination "chesstrainer2042 won on time"]

1. e4 {[%clk 0:03:00.9]} 1... c5 {[%clk 0:02:59.7]} 2. Nc3 {[%clk 0:02:58.4]}
2... a6 {[%clk 0:02:59.1]} 3. Nge2 {[%clk 0:02:56.7]} 3... d6 {[%clk 0:02:52.3]}
4. g3 {[%clk 0:02:56.4]} 4... g6 {[%clk 0:02:51.3]} 5. Bg2 {[%clk 0:02:56.5]}
5... Bg7 {[%clk 0:02:51.7]} 6. O-O {[%clk 0:02:56.4]} 6... Nc6 {[%clk
0:02:46.5]} 7. d3 {[%clk 0:02:55.9]} 7... e5 {[%clk 0:02:46.1]} 8. f4 {[%clk
0:02:54.5]} 8... Nge7 {[%clk 0:02:40.5]} 9. Be3 {[%clk 0:02:52.2]} 9... f5
{[%clk 0:02:35.2]} 10. Qd2 {[%clk 0:02:45.8]} 10... O-O {[%clk 0:02:33.5]} 11.
fxe5 {[%clk 0:02:46]} 11... Nxe5 {[%clk 0:02:21.4]} 12. Bh6 {[%clk 0:02:46.3]}
12... Bxh6 {[%clk 0:01:50.4]} 13. Qxh6 {[%clk 0:02:45]} 13... Ng4 {[%clk
0:01:51]} 14. Qd2 {[%clk 0:02:39.7]} 14... fxe4 {[%clk 0:01:50.4]} 15. Nxe4
{[%clk 0:02:28.6]} 15... Nf5 {[%clk 0:01:44.8]} 16. N2c3 {[%clk 0:01:52.8]}
16... Nge3 {[%clk 0:01:41.1]} 17. Rf4 {[%clk 0:01:32]} 17... Nxg2 {[%clk
0:01:32]} 18. Qxg2 {[%clk 0:01:08.4]} 18... Bd7 {[%clk 0:00:59.2]} 19. Raf1
{[%clk 0:01:05.4]} 19... Qe7 {[%clk 0:00:15.6]} 20. Qf2 {[%clk 0:00:48.4]} 20...
Nd4 {[%clk 0:00:10.9]} 21. Nd5 {[%clk 0:00:30.8]} 21... Qg7 {[%clk 0:00:06.2]}
22. Ndf6+ {[%clk 0:00:24.7]} 22... Kh8 {[%clk 0:00:04.2]} 23. c3 {[%clk
0:00:16.9]} 23... Ne6 {[%clk 0:00:02.2]} 24. Rh4 {[%clk 0:00:16.6]} 24... g5
{[%clk 0:00:01.5]} 25. Rh5 {[%clk 0:00:14.5]} 25... Qg6 {[%clk 0:00:01]} 26. Qg2
{[%clk 0:00:12.5]} 26... d5 {[%clk 0:00:01]} 27. Qh3 {[%clk 0:00:10.2]} 1-0

[Event "*** Titled Tuesday Blitz"]
[Site "Chess.com"]
[Date "2020.10.20"]
[Round "3"]
[White "lelya96"]
[Black "konradrutkowski"]
[Result "0-1"]
[WhiteElo "2177"]
[BlackElo "2436"]
[TimeControl "180+1"]
[EndTime "10:28:57 PDT"]
[Termination "konradrutkowski won by checkmate"]

1. d4 {[%clk 0:03:00.9]} 1... Nf6 {[%clk 0:02:56.8]} 2. Nc3 {[%clk 0:03:00.4]}
2... d5 {[%clk 0:02:55.1]} 3. Bf4 {[%clk 0:03:00.3]} 3... c6 {[%clk 0:02:54.2]}
4. e3 {[%clk 0:02:59.1]} 4... Bf5 {[%clk 0:02:53.4]} 5. Bd3 {[%clk 0:02:58.6]}
5... e6 {[%clk 0:02:51]} 6. h3 {[%clk 0:02:56.5]} 6... Nbd7 {[%clk 0:02:50.1]}
7. Nge2 {[%clk 0:02:55.8]} 7... Be7 {[%clk 0:02:48.8]} 8. O-O {[%clk 0:02:55]}
8... O-O {[%clk 0:02:47.6]} 9. Bh2 {[%clk 0:02:54.5]} 9... Bxd3 {[%clk
0:02:44.5]} 10. Qxd3 {[%clk 0:02:53.9]} 10... c5 {[%clk 0:02:44.4]} 11. e4
{[%clk 0:02:48.1]} 11... cxd4 {[%clk 0:02:41.3]} 12. Qxd4 {[%clk 0:02:47.4]}
12... dxe4 {[%clk 0:02:26.8]} 13. Nxe4 {[%clk 0:02:45.8]} 13... Nxe4 {[%clk
0:02:22.7]} 14. Qxe4 {[%clk 0:02:45.7]} 14... Nf6 {[%clk 0:02:17.3]} 15. Qa4
{[%clk 0:02:31.7]} 15... Qb6 {[%clk 0:02:11.8]} 16. b3 {[%clk 0:02:26.7]} 16...
Rac8 {[%clk 0:02:08.6]} 17. c4 {[%clk 0:02:25]} 17... Rfd8 {[%clk 0:02:07.2]}
18. Rad1 {[%clk 0:02:23.5]} 18... Ne4 {[%clk 0:02:06.2]} 19. c5 {[%clk
0:01:13.2]} 19... Nxc5 {[%clk 0:02:02.4]} 20. Qg4 {[%clk 0:01:13.6]} 20... Nd3
{[%clk 0:01:48.2]} 21. Nf4 {[%clk 0:01:02.9]} 21... Nxf2 {[%clk 0:01:34.1]} 22.
Rxf2 {[%clk 0:00:47]} 22... Rxd1+ {[%clk 0:01:31.1]} 23. Qxd1 {[%clk 0:00:46.2]}
23... Bc5 {[%clk 0:01:26]} 24. Bg3 {[%clk 0:00:39.9]} 24... Be3 {[%clk
0:01:25.7]} 25. Ne2 {[%clk 0:00:32.1]} 25... Rd8 {[%clk 0:01:16.1]} 26. Qf1
{[%clk 0:00:29.6]} 26... Rd2 {[%clk 0:01:10.3]} 27. Bf4 {[%clk 0:00:20.3]} 27...
Bxf2+ {[%clk 0:01:00]} 28. Kh2 {[%clk 0:00:14]} 28... Rxa2 {[%clk 0:00:52.4]}
29. Nc3 {[%clk 0:00:13.2]} 29... Rc2 {[%clk 0:00:46.8]} 30. Ne4 {[%clk
0:00:13.1]} 30... h6 {[%clk 0:00:41.5]} 31. Qd3 {[%clk 0:00:11.2]} 31... Bg1+
{[%clk 0:00:36.9]} 32. Kg3 {[%clk 0:00:10.7]} 32... Rc8 {[%clk 0:00:29.9]} 33.
Nd6 {[%clk 0:00:10.3]} 33... Qf2+ {[%clk 0:00:25.9]} 34. Kg4 {[%clk 0:00:07.9]}
34... Rc5 {[%clk 0:00:22.9]} 35. h4 {[%clk 0:00:07.3]} 35... h5+ {[%clk
0:00:21.2]} 36. Kh3 {[%clk 0:00:07.5]} 36... Qxf4 {[%clk 0:00:18.6]} 37. Ne4
{[%clk 0:00:06.7]} 37... Qg4# {[%clk 0:00:17.4]} 0-1

[Event "*** Titled Tuesday Blitz"]
[Site "Chess.com"]
[Date "2020.10.20"]
[Round "3"]
[White "anon569"]
[Black "giantslayer83"]
[Result "0-1"]
[WhiteElo "2270"]
[BlackElo "2700"]
[TimeControl "180+1"]
[EndTime "10:28:58 PDT"]
[Termination "giantslayer83 won by checkmate"]

1. e4 {[%clk 0:03:00.9]} 1... c6 {[%clk 0:02:59.7]} 2. d4 {[%clk 0:02:57.9]}
2... d5 {[%clk 0:03:00.6]} 3. Nd2 {[%clk 0:02:57.7]} 3... dxe4 {[%clk 0:02:55]}
4. Nxe4 {[%clk 0:02:57.1]} 4... Bf5 {[%clk 0:02:55.6]} 5. Ng3 {[%clk 0:02:56.3]}
5... Bg6 {[%clk 0:02:55.9]} 6. h4 {[%clk 0:02:56.9]} 6... h6 {[%clk 0:02:55.9]}
7. Nh3 {[%clk 0:02:57.5]} 7... Nf6 {[%clk 0:02:21.6]} 8. Nf4 {[%clk 0:02:52]}
8... Bh7 {[%clk 0:02:22]} 9. Bc4 {[%clk 0:02:51.4]} 9... e5 {[%clk 0:02:10.6]}
10. dxe5 {[%clk 0:02:24.5]} 10... Qxd1+ {[%clk 0:02:07.8]} 11. Kxd1 {[%clk
0:02:24.3]} 11... Ng4 {[%clk 0:02:08.7]} 12. Nd3 {[%clk 0:02:16.5]} 12... Bxd3
{[%clk 0:02:07.5]} 13. cxd3 {[%clk 0:02:02]} 13... Nxf2+ {[%clk 0:02:06.5]} 14.
Kc2 {[%clk 0:02:02.5]} 14... Nxh1 {[%clk 0:02:07.4]} 15. Nxh1 {[%clk 0:02:02.9]}
15... Nd7 {[%clk 0:02:07.1]} 16. Bf4 {[%clk 0:02:01.6]} 16... Nb6 {[%clk
0:02:06.3]} 17. Bb3 {[%clk 0:01:56.7]} 17... Rd8 {[%clk 0:02:05.7]} 18. Nf2
{[%clk 0:01:55.3]} 18... Nd5 {[%clk 0:02:05.3]} 19. Bg3 {[%clk 0:01:25.4]} 19...
Ne3+ {[%clk 0:02:00.1]} 20. Kd2 {[%clk 0:01:20.1]} 20... Nf5 {[%clk 0:02:00]}
21. Bh2 {[%clk 0:01:15.3]} 21... Nxh4 {[%clk 0:01:59.7]} 22. Ne4 {[%clk
0:01:15.1]} 22... Nxg2 {[%clk 0:01:51]} 23. Rf1 {[%clk 0:01:11]} 23... Bb4+
{[%clk 0:01:48.2]} 24. Ke2 {[%clk 0:01:10.3]} 24... O-O {[%clk 0:01:48.4]} 25.
Rg1 {[%clk 0:01:10.3]} 25... Nh4 {[%clk 0:01:46.6]} 26. Rg4 {[%clk 0:01:10.2]}
26... Nf5 {[%clk 0:01:45.1]} 27. Bf4 {[%clk 0:01:00.7]} 27... Kh7 {[%clk
0:01:43]} 28. Be3 {[%clk 0:00:45.2]} 28... Nxe3 {[%clk 0:01:41.5]} 29. Kxe3
{[%clk 0:00:45.1]} 29... Be7 {[%clk 0:01:39.1]} 30. d4 {[%clk 0:00:44]} 30... f5
{[%clk 0:01:38.9]} 31. exf6 {[%clk 0:00:38.1]} 31... Bxf6 {[%clk 0:01:39.2]} 32.
Nxf6+ {[%clk 0:00:38.4]} 32... Rxf6 {[%clk 0:01:39.2]} 33. Bc2+ {[%clk
0:00:38.5]} 33... Kh8 {[%clk 0:01:39.2]} 34. Re4 {[%clk 0:00:33.9]} 34... Rfd6
{[%clk 0:01:29.5]} 35. Bb3 {[%clk 0:00:23.9]} 35... g5 {[%clk 0:01:27.8]} 36.
Re7 {[%clk 0:00:20.5]} 36... R6d7 {[%clk 0:01:25.3]} 37. Re6 {[%clk 0:00:20.6]}
37... Kg7 {[%clk 0:01:25.2]} 38. Bc2 {[%clk 0:00:19.8]} 38... Rxd4 {[%clk
0:01:18]} 39. Rg6+ {[%clk 0:00:17.6]} 39... Kf7 {[%clk 0:01:18.3]} 40. Rxh6
{[%clk 0:00:17.6]} 40... Rd2 {[%clk 0:01:18.1]} 41. Bb3+ {[%clk 0:00:16]} 41...
Kg7 {[%clk 0:01:18.4]} 42. Re6 {[%clk 0:00:15.7]} 42... Rxb2 {[%clk 0:01:13.5]}
43. Re7+ {[%clk 0:00:15.6]} 43... Kf6 {[%clk 0:01:13.8]} 44. Rxb7 {[%clk
0:00:16.2]} 44... g4 {[%clk 0:01:09.8]} 45. Rf7+ {[%clk 0:00:14.6]} 45... Kg6
{[%clk 0:01:08.3]} 46. Rc7 {[%clk 0:00:12.2]} 46... Rd6 {[%clk 0:01:07.7]} 47.
Kf4 {[%clk 0:00:09.8]} 47... Rd4+ {[%clk 0:00:58.2]} 48. Kg3 {[%clk 0:00:09.5]}
48... Kg5 {[%clk 0:00:55.7]} 49. Rxc6 {[%clk 0:00:09.5]} 49... Rd3# {[%clk
0:00:56.1]} 0-1

[Event "*** Titled Tuesday Blitz"]
[Site "Chess.com"]
[Date "2020.10.20"]
[Round "3"]
[White "dpopadic"]
[Black "Azatic"]
[Result "1-0"]
[WhiteElo "2382"]
[BlackElo "2559"]
[TimeControl "180+1"]
[EndTime "10:28:59 PDT"]
[Termination "dpopadic won by resignation"]

1. e4 {[%clk 0:03:00.9]} 1... c5 {[%clk 0:02:59.9]} 2. Nc3 {[%clk 0:03:00.9]}
2... e6 {[%clk 0:02:59.6]} 3. d3 {[%clk 0:03:00.3]} 3... Nc6 {[%clk 0:02:59.6]}
4. g4 {[%clk 0:03:00.3]} 4... d5 {[%clk 0:02:58.2]} 5. Bg2 {[%clk 0:03:00.3]}
5... dxe4 {[%clk 0:02:46.5]} 6. Nxe4 {[%clk 0:02:59.6]} 6... Be7 {[%clk
0:02:39.9]} 7. Nh3 {[%clk 0:02:59.1]} 7... Nf6 {[%clk 0:02:37.6]} 8. O-O {[%clk
0:02:58.2]} 8... O-O {[%clk 0:02:37.1]} 9. Be3 {[%clk 0:02:55.9]} 9... Nxe4
{[%clk 0:02:31.4]} 10. dxe4 {[%clk 0:02:53.7]} 10... e5 {[%clk 0:02:22.4]} 11.
f3 {[%clk 0:02:47.9]} 11... Qb6 {[%clk 0:02:16.7]} 12. Qc1 {[%clk 0:02:36.2]}
12... Be6 {[%clk 0:02:09.1]} 13. c3 {[%clk 0:02:35.3]} 13... Rad8 {[%clk
0:02:06.8]} 14. b4 {[%clk 0:02:22.6]} 14... Qb5 {[%clk 0:01:42.5]} 15. a3 {[%clk
0:02:12.9]} 15... Qc4 {[%clk 0:01:24.8]} 16. Nf2 {[%clk 0:02:00.4]} 16... a6
{[%clk 0:01:16.8]} 17. Re1 {[%clk 0:02:00.3]} 17... cxb4 {[%clk 0:01:15.9]} 18.
axb4 {[%clk 0:01:53.2]} 18... Qb5 {[%clk 0:01:13.9]} 19. Qc2 {[%clk 0:01:37]}
19... Bc4 {[%clk 0:01:11.2]} 20. Red1 {[%clk 0:01:36.4]} 20... h6 {[%clk
0:01:05.8]} 21. Bf1 {[%clk 0:01:30.6]} 21... Bxf1 {[%clk 0:01:04.9]} 22. Rxf1
{[%clk 0:01:30.8]} 22... Rd7 {[%clk 0:01:01.4]} 23. Rfd1 {[%clk 0:01:30.7]}
23... Rfd8 {[%clk 0:01:01.1]} 24. Rxd7 {[%clk 0:01:30.2]} 24... Rxd7 {[%clk
0:01:02]} 25. Rd1 {[%clk 0:01:29.5]} 25... Rxd1+ {[%clk 0:01:01.5]} 26. Qxd1
{[%clk 0:01:29.6]} 26... Qc4 {[%clk 0:00:59.2]} 27. Qd3 {[%clk 0:01:28]} 27...
Qb3 {[%clk 0:00:54.8]} 28. Kg2 {[%clk 0:01:27.4]} 28... Bh4 {[%clk 0:00:32.4]}
29. Qd2 {[%clk 0:00:53.1]} 29... Qe6 {[%clk 0:00:24]} 30. Qd5 {[%clk 0:00:47.9]}
30... Qe7 {[%clk 0:00:22.1]} 31. Nd3 {[%clk 0:00:44.8]} 31... Bg5 {[%clk
0:00:19.1]} 32. Bc5 {[%clk 0:00:40.1]} 32... Qe8 {[%clk 0:00:18.2]} 33. Bd6
{[%clk 0:00:37.6]} 33... Bf6 {[%clk 0:00:16.3]} 34. b5 {[%clk 0:00:35.6]} 34...
axb5 {[%clk 0:00:16.1]} 35. Qxb5 {[%clk 0:00:35.4]} 35... Qc8 {[%clk 0:00:16.7]}
36. Ba3 {[%clk 0:00:31.4]} 36... Qa8 {[%clk 0:00:16]} 37. Qb3 {[%clk 0:00:27.4]}
37... Qa6 {[%clk 0:00:16]} 38. Nf2 {[%clk 0:00:21]} 38... Bh4 {[%clk 0:00:14.6]}
39. Qb2 {[%clk 0:00:19.3]} 39... Qd3 {[%clk 0:00:14]} 40. Nxd3 {[%clk
0:00:18.7]} 40... Na5 {[%clk 0:00:13]} 41. Qb5 {[%clk 0:00:18.1]} 1-0

[Event "*** Titled Tuesday Blitz"]
[Site "Chess.com"]
[Date "2020.10.20"]
[Round "3"]
[White "Xeniya2005"]
[Black "RobertoJBM"]
[Result "0-1"]
[WhiteElo "2408"]
[BlackElo "2693"]
[TimeControl "180+1"]
[EndTime "10:29:02 PDT"]
[Termination "RobertoJBM won by resignation"]

1. e4 {[%clk 0:03:00.9]} 1... c6 {[%clk 0:02:59.6]} 2. d4 {[%clk 0:03:00.1]}
2... d5 {[%clk 0:03:00.5]} 3. Nd2 {[%clk 0:02:59.7]} 3... dxe4 {[%clk
0:03:00.4]} 4. Nxe4 {[%clk 0:03:00.6]} 4... Nd7 {[%clk 0:03:00.9]} 5. Nf3 {[%clk
0:02:59.3]} 5... Ngf6 {[%clk 0:03:01]} 6. Nxf6+ {[%clk 0:02:58.5]} 6... Nxf6
{[%clk 0:03:01.9]} 7. c3 {[%clk 0:02:57.5]} 7... Bg4 {[%clk 0:03:00.9]} 8. Be2
{[%clk 0:02:57]} 8... e6 {[%clk 0:02:59.1]} 9. Bf4 {[%clk 0:02:49.9]} 9... Bd6
{[%clk 0:02:56.5]} 10. Bxd6 {[%clk 0:02:49.3]} 10... Qxd6 {[%clk 0:02:55.5]} 11.
h3 {[%clk 0:02:48.6]} 11... Bxf3 {[%clk 0:02:55.5]} 12. Bxf3 {[%clk 0:02:47.2]}
12... O-O {[%clk 0:02:56.4]} 13. O-O {[%clk 0:02:44.8]} 13... Rad8 {[%clk
0:02:56.9]} 14. Qe2 {[%clk 0:02:42.6]} 14... Rfe8 {[%clk 0:02:56.6]} 15. Rfe1
{[%clk 0:02:41.6]} 15... Qc7 {[%clk 0:02:53.1]} 16. Rad1 {[%clk 0:02:40.9]}
16... Rd7 {[%clk 0:02:52.3]} 17. g3 {[%clk 0:02:38.8]} 17... Red8 {[%clk
0:02:51.9]} 18. Kg2 {[%clk 0:02:30.7]} 18... h6 {[%clk 0:02:47.5]} 19. Qe5
{[%clk 0:02:24]} 19... Qxe5 {[%clk 0:02:45]} 20. Rxe5 {[%clk 0:02:24.9]} 20...
Kf8 {[%clk 0:02:44.1]} 21. h4 {[%clk 0:02:20.2]} 21... g6 {[%clk 0:02:41.5]} 22.
Rde1 {[%clk 0:02:15.7]} 22... h5 {[%clk 0:02:41.1]} 23. Kh3 {[%clk 0:02:12.4]}
23... Kg7 {[%clk 0:02:38.9]} 24. a4 {[%clk 0:02:04.7]} 24... Rc7 {[%clk
0:02:37]} 25. a5 {[%clk 0:02:01.1]} 25... Nd7 {[%clk 0:02:33.6]} 26. R5e3 {[%clk
0:01:58.8]} 26... b6 {[%clk 0:02:31]} 27. axb6 {[%clk 0:01:52.7]} 27... axb6
{[%clk 0:02:14]} 28. Ra1 {[%clk 0:01:52.2]} 28... Rb8 {[%clk 0:02:07.7]} 29. Ra3
{[%clk 0:01:43.9]} 29... c5 {[%clk 0:01:55.3]} 30. dxc5 {[%clk 0:01:42.8]} 30...
bxc5 {[%clk 0:01:50.2]} 31. b3 {[%clk 0:01:35.3]} 31... Kf6 {[%clk 0:01:44.6]}
32. Re4 {[%clk 0:01:22]} 32... Nb6 {[%clk 0:01:40.6]} 33. b4 {[%clk 0:01:16.6]}
33... Nd5 {[%clk 0:01:21.8]} 34. Rb3 {[%clk 0:00:52]} 34... cxb4 {[%clk
0:01:14]} 35. cxb4 {[%clk 0:00:49.2]} 35... Rb6 {[%clk 0:01:09.9]} 36. Rd4
{[%clk 0:00:44.9]} 36... Ne7 {[%clk 0:01:07.7]} 37. b5 {[%clk 0:00:42.9]} 37...
Rc5 {[%clk 0:01:06.4]} 38. Rdb4 {[%clk 0:00:40.8]} 38... Nc8 {[%clk 0:00:56.7]}
39. Be2 {[%clk 0:00:37.6]} 39... Nd6 {[%clk 0:00:56.4]} 40. Ra4 {[%clk 0:00:34]}
40... Rc2 {[%clk 0:00:49.8]} 41. Bd3 {[%clk 0:00:26.8]} 41... Rxf2 {[%clk
0:00:46.3]} 42. Ra6 {[%clk 0:00:24.7]} 42... Rxa6 {[%clk 0:00:46.1]} 43. bxa6
{[%clk 0:00:23.6]} 43... Ra2 {[%clk 0:00:45.2]} 44. Rb6 {[%clk 0:00:21.9]} 44...
Nf5 {[%clk 0:00:41]} 45. Rb7 {[%clk 0:00:19.7]} 45... Nd4 {[%clk 0:00:40]} 46.
Be4 {[%clk 0:00:17.5]} 46... Rxa6 {[%clk 0:00:38.7]} 47. Bd3 {[%clk 0:00:15.4]}
47... Ra3 {[%clk 0:00:37.8]} 48. Be4 {[%clk 0:00:14.8]} 48... Ne2 {[%clk
0:00:38]} 0-1

[Event "*** Titled Tuesday Blitz"]
[Site "Chess.com"]
[Date "2020.10.20"]
[Round "3"]
[White "Ashedu66"]
[Black "Snegokhod"]
[Result "0-1"]
[WhiteElo "2178"]
[BlackElo "2440"]
[TimeControl "180+1"]
[EndTime "10:29:02 PDT"]
[Termination "Snegokhod won on time"]

1. d4 {[%clk 0:03:00.9]} 1... Nf6 {[%clk 0:02:59.1]} 2. Nf3 {[%clk 0:03:00.1]}
2... g6 {[%clk 0:02:59]} 3. c4 {[%clk 0:02:59.4]} 3... Bg7 {[%clk 0:02:59.2]} 4.
Nc3 {[%clk 0:02:59.6]} 4... d5 {[%clk 0:02:59.4]} 5. Bf4 {[%clk 0:02:58.8]} 5...
O-O {[%clk 0:02:58.6]} 6. Rc1 {[%clk 0:02:58.8]} 6... c5 {[%clk 0:02:58.4]} 7.
dxc5 {[%clk 0:02:57.6]} 7... Qa5 {[%clk 0:02:57.3]} 8. cxd5 {[%clk 0:02:57.5]}
8... Qxc5 {[%clk 0:02:57.3]} 9. e4 {[%clk 0:02:55.3]} 9... Qb4 {[%clk
0:02:55.3]} 10. Qb3 {[%clk 0:02:52.6]} 10... Qa5 {[%clk 0:02:54.1]} 11. Bd2
{[%clk 0:02:44.7]} 11... Nbd7 {[%clk 0:02:51.1]} 12. Qb5 {[%clk 0:01:51.7]}
12... Qd8 {[%clk 0:02:46.3]} 13. h3 {[%clk 0:01:40.8]} 13... a6 {[%clk
0:02:45.5]} 14. Qb4 {[%clk 0:01:36.2]} 14... b5 {[%clk 0:02:44]} 15. a4 {[%clk
0:01:32.4]} 15... a5 {[%clk 0:02:36.4]} 16. Qxb5 {[%clk 0:01:20.7]} 16... Rb8
{[%clk 0:02:35.5]} 17. Qc4 {[%clk 0:01:09.7]} 17... Rxb2 {[%clk 0:02:30.3]} 18.
Bd3 {[%clk 0:01:01.6]} 18... Rb4 {[%clk 0:02:29.7]} 19. Qa2 {[%clk 0:00:52.8]}
19... Nc5 {[%clk 0:02:29.1]} 20. Bb1 {[%clk 0:00:50.9]} 20... Nfxe4 {[%clk
0:02:28.3]} 21. Nxe4 {[%clk 0:00:49.8]} 21... Rxe4+ {[%clk 0:02:26.5]} 22. Bxe4
{[%clk 0:00:49.2]} 22... Nxe4 {[%clk 0:02:26.7]} 23. O-O {[%clk 0:00:47.8]}
23... Nxd2 {[%clk 0:02:26.1]} 24. Qxd2 {[%clk 0:00:46]} 24... Bd7 {[%clk
0:02:23.1]} 25. Rc4 {[%clk 0:00:37.5]} 25... Bf6 {[%clk 0:02:15.9]} 26. Rfc1
{[%clk 0:00:36.9]} 26... Qb6 {[%clk 0:02:12.8]} 27. Qe3 {[%clk 0:00:35.1]} 27...
Qa6 {[%clk 0:01:58.8]} 28. Ne5 {[%clk 0:00:31.5]} 28... Bf5 {[%clk 0:01:57.8]}
29. Nc6 {[%clk 0:00:29.7]} 29... e6 {[%clk 0:01:46.5]} 30. d6 {[%clk 0:00:27.4]}
30... Qb7 {[%clk 0:01:39.4]} 31. Ne7+ {[%clk 0:00:18.7]} 31... Bxe7 {[%clk
0:01:35.1]} 32. Rc7 {[%clk 0:00:18.6]} 32... Qb4 {[%clk 0:01:18.9]} 33. dxe7
{[%clk 0:00:18.1]} 33... Re8 {[%clk 0:01:19.5]} 34. Rc8 {[%clk 0:00:15.9]} 34...
Qxe7 {[%clk 0:01:18.4]} 35. Qh6 {[%clk 0:00:12.9]} 35... e5 {[%clk 0:01:16.6]}
36. R1c7 {[%clk 0:00:10.7]} 36... Bxc8 {[%clk 0:01:05.2]} 37. Rxe7 {[%clk
0:00:10.2]} 37... Rxe7 {[%clk 0:01:05.8]} 38. Qe3 {[%clk 0:00:10.1]} 38... Bd7
{[%clk 0:01:01.9]} 39. Qc5 {[%clk 0:00:09]} 39... Re6 {[%clk 0:00:57.8]} 40.
Qxa5 {[%clk 0:00:08.8]} 40... e4 {[%clk 0:00:57]} 41. Qd8+ {[%clk 0:00:08.3]}
41... Be8 {[%clk 0:00:56.5]} 42. a5 {[%clk 0:00:08.4]} 42... Kf8 {[%clk
0:00:56.2]} 43. Qc8 {[%clk 0:00:04.8]} 43... Rc6 {[%clk 0:00:52.4]} 44. Qb7
{[%clk 0:00:02.6]} 44... Rc1+ {[%clk 0:00:48.8]} 45. Kh2 {[%clk 0:00:02.8]}
45... Bc6 {[%clk 0:00:49.6]} 46. Qb4+ {[%clk 0:00:02.5]} 46... Kg8 {[%clk
0:00:48.7]} 47. a6 {[%clk 0:00:02.7]} 47... e3 {[%clk 0:00:44.6]} 48. fxe3
{[%clk 0:00:01.5]} 48... Rc2 {[%clk 0:00:45.1]} 0-1